bitfinex/quotes_BTCUSD_20241111
["timestamp","ask_amount","ask_price","bid_price","bid_amount"]
[1731341717563,0.17967767,84627.0,84608.0,0.1]
[1731341717772,0.0484,84628.0,84608.0,0.1]
[1731341717980,0.0484,84628.0,84608.0,0.10236378]
[1731341718185,0.0484,84628.0,84609.0,0.00236339]
[1731341718427,0.29725515,84621.0,84607.0,0.00236339]
[1731341718656,0.11994075,84621.0,84609.0,0.1]
[1731341718870,0.00248327,84620.0,84609.0,0.1]
[1731341719085,0.11994075,84616.0,84613.0,0.1]
[1731341719944,0.00248327,84615.0,84613.0,0.1]
[1731341720152,0.1773144,84625.0,84606.0,0.1]
[1731341720153,0.11994075,84614.0,84606.0,0.1]
[1731341720374,0.12242402,84614.0,84605.0,0.1]
[1731341720590,0.12242402,84614.0,84604.0,0.10270946]
[1731341720591,0.11994075,84611.0,84604.0,0.1]
[1731341720813,0.1773144,84625.0,84599.0,0.10270946]
[1731341720814,0.11994075,84609.0,84599.0,0.10270946]
[1731341721017,0.11994075,84609.0,84596.0,0.005848]
[1731341721018,0.08508327,84608.0,84600.0,0.1773144]
[1731341721230,0.11994075,84607.0,84596.0,0.10855746]
[1731341721438,0.00248327,84606.0,84596.0,0.005848]
[1731341721644,0.11994075,84605.0,84596.0,0.005848]
[1731341721854,0.00248327,84604.0,84596.0,0.005848]
[1731341722082,0.11994075,84603.0,84596.0,0.005848]
[1731341722291,0.11994075,84599.0,84596.0,0.005848]
[1731341722520,0.16964075,84597.0,84596.0,0.005848]
[1731341723156,0.16964075,84597.0,84596.0,0.09140205]
[1731341723396,0.16964075,84597.0,84596.0,0.005848]
[1731341723615,0.20014075,84597.0,84588.0,0.06841882]
[1731341723852,0.20014075,84597.0,84578.0,0.1781634]
[1731341723853,0.11994075,84589.0,84581.0,0.06841882]
[1731341724093,0.11994075,84589.0,84575.0,0.000849]
[1731341724094,0.0492,84581.0,84575.0,0.000849]
[1731341724325,0.00248327,84580.0,84575.0,0.000849]
[1731341724549,0.1258,84579.0,84575.0,0.000849]
[1731341724820,0.00248327,84578.0,84557.0,0.26420645]
[1731341725032,0.00248327,84578.0,84575.0,0.1773144]
[1731341725244,0.1773144,84577.0,84557.0,0.001338]
[1731341725453,0.0481,84574.0,84554.0,0.1773144]
[1731341725666,0.00248327,84573.0,84548.0,0.1773144]
[1731341725874,0.0481,84572.0,84548.0,0.1673144]
[1731341726115,0.11994075,84557.0,84549.0,0.2245444]
[1731341726366,0.00248327,84556.0,84549.0,0.2245444]
[1731341726587,0.11994075,84555.0,84549.0,0.04723]
[1731341726824,0.00248327,84554.0,84549.0,0.04723]
[1731341727060,0.11994075,84553.0,84549.0,0.04723]
[1731341727282,0.11994075,84553.0,84549.0,0.18139436]
[1731341727720,0.11994075,84553.0,84549.0,0.14723]
[1731341728160,0.1773144,84551.0,84549.0,0.14723]
[1731341728368,0.24932402,84550.0,84549.0,0.04723]
[1731341728814,0.24684075,84550.0,84549.0,0.04723]
[1731341729040,0.11994075,84550.0,84549.0,0.04723]
[1731341730124,0.11994075,84550.0,84549.0,0.05902447]
[1731341731022,0.11994075,84550.0,84549.0,0.04723]
[1731341731645,0.09924545,84550.0,84549.0,0.04723]
[1731341732334,0.11157589,84550.0,84549.0,0.04723]
[1731341732538,0.23917589,84550.0,84549.0,0.04723]
[1731341732746,0.23854815,84550.0,84549.0,0.04723]
[1731341732959,0.23854815,84550.0,84543.0,0.001338]
[1731341733181,0.11994075,84544.0,84543.0,0.001338]
[1731341733852,0.11994075,84544.0,84538.0,0.000848]
[1731341734098,0.023,84538.0,84532.0,0.001338]
[1731341734306,0.11994075,84533.0,84532.0,0.001338]
[1731341734541,0.13894075,84533.0,84532.0,0.001338]
[1731341734753,0.023,84532.0,84513.0,0.1773144]
[1731341734969,0.11994075,84514.0,84513.0,0.1773144]
[1731341735658,0.11994075,84514.0,84500.0,0.053662]
[1731341736092,0.11994075,84508.0,84501.0,0.00236681]
[1731341736319,0.11994075,84508.0,84500.0,0.053662]
[1731341736731,0.00248327,84507.0,84500.0,0.053662]
[1731341736965,0.11994075,84501.0,84500.0,0.053662]
[1731341737213,0.12242402,84501.0,84500.0,0.053662]
[1731341738411,0.11994075,84501.0,84500.0,0.053662]
[1731341738837,0.12242402,84501.0,84500.0,0.053662]
[1731341739721,0.023,84500.0,84471.0,0.1773144]
[1731341739962,0.023,84498.0,84484.0,0.1773144]
[1731341740206,0.023,84498.0,84471.0,0.1773144]
[1731341740207,0.023,84496.0,84471.0,0.1773144]
[1731341740411,0.023,84494.0,84472.0,0.1773144]
[1731341740647,0.1773144,84497.0,84470.0,0.02]
[1731341740648,0.1773144,84473.0,84470.0,0.02]
[1731341740858,0.1773144,84497.0,84456.0,0.0002289]
[1731341740859,0.0795,84471.0,84456.0,0.0002289]
[1731341741301,0.0795,84471.0,84455.0,0.005]
[1731341741520,0.11994075,84469.0,84455.0,0.005]
[1731341742165,0.11994075,84469.0,84459.0,0.005]
[1731341743036,0.00248327,84468.0,84455.0,0.005]
[1731341743263,0.003662,84455.0,84436.0,0.0002289]
[1731341743478,0.005,84463.0,84436.0,0.0002289]
[1731341743479,0.12360275,84454.0,84441.0,0.1773144]
[1731341743701,0.12360275,84454.0,84437.0,0.0032106]
[1731341743702,0.00248327,84453.0,84437.0,0.0032106]
[1731341743915,0.1773144,84468.0,84437.0,0.0032106]
[1731341743916,0.1773144,84470.0,84440.0,0.002]
[1731341744154,0.005,84450.0,84441.0,0.00236761]
[1731341744372,0.11994075,84449.0,84441.0,0.00236761]
[1731341744839,0.005,84459.0,84441.0,0.00236761]
[1731341745060,0.1773144,84461.0,84441.0,0.00236761]
[1731341745061,0.1773144,84461.0,84442.0,0.023]
[1731341745308,0.1773144,84460.0,84444.0,0.023]
[1731341745525,0.1773144,84450.0,84445.0,0.00236766]
[1731341745739,0.005,84459.0,84444.0,0.023]
[1731341745949,0.005,84465.0,84446.0,0.023]
[1731341746158,0.1773144,84459.0,84446.0,0.023]
[1731341746377,0.1773144,84459.0,84438.0,0.023]
[1731341746583,0.11994075,84464.0,84437.0,0.01918097]
[1731341746584,0.11994075,84464.0,84443.0,0.123]
[1731341746795,0.1773144,84461.0,84445.0,0.023]
[1731341747004,0.1773144,84460.0,84449.0,0.023]
[1731341747652,0.1773144,84460.0,84448.0,0.1]
[1731341747869,0.1773144,84470.0,84448.0,0.1]
[1731341748093,0.1773144,84479.0,84476.0,0.00582249]
[1731341748538,0.005,84500.0,84476.0,0.00582249]
[1731341748539,0.1823144,84510.0,84476.0,0.00582249]
[1731341748752,0.1873144,84510.0,84477.0,0.0828]
[1731341748977,0.005,84500.0,84476.0,0.00582249]
[1731341749416,0.1873144,84510.0,84477.0,0.00236663]
[1731341749629,0.005,84508.0,84479.0,0.05995779]
[1731341749775,0.005,84508.0,84478.0,0.023]
[1731341749988,0.1773144,84500.0,84479.0,0.23727219]
[1731341750195,0.11994075,84507.0,84479.0,0.23727219]
[1731341750401,0.1773144,84501.0,84481.0,0.18280732]
[1731341750603,0.1773144,84510.0,84483.0,0.18287386]
[1731341750801,0.1773144,84501.0,84487.0,0.05944807]
[1731341751031,0.1773144,84499.0,84490.0,0.023]
[1731341751282,0.1773144,84499.0,84494.0,0.05953046]
[1731341751498,0.1773144,84501.0,84494.0,0.05953046]
[1731341751699,0.16903844,84501.0,84494.0,0.05953046]
[1731341752073,0.13935945,84510.0,84493.0,0.1]
[1731341752232,0.11126047,84509.0,84478.0,0.1]
[1731341752434,0.11126047,84509.0,84490.0,0.1]
[1731341752641,0.1773144,84508.0,84492.0,0.023]
[1731341752843,0.1773144,84508.0,84491.0,0.00236642]
[1731341752844,0.1773144,84508.0,84491.0,0.023]
[1731341753047,0.005,84523.0,84493.0,0.123]
[1731341753251,0.1773144,84513.0,84496.0,0.0475]
[1731341753453,0.1773144,84518.0,84498.0,0.1]
[1731341753628,0.1773144,84518.0,84499.0,0.14294075]
[1731341753828,0.1773144,84518.0,84498.0,0.1]
[1731341754036,0.11994075,84517.0,84499.0,0.1773144]
[1731341754239,0.11994075,84517.0,84498.0,0.1]
[1731341754648,0.11994075,84517.0,84496.0,0.0475]
[1731341755675,0.1773144,84509.0,84496.0,0.0475]
[1731341755843,0.11994075,84517.0,84499.0,0.1]
[1731341756057,0.1773144,84516.0,84500.0,0.00236625]
[1731341756263,0.06470936,84530.0,84501.0,0.45289784]
[1731341756480,0.1773144,84522.0,84505.0,0.023]
[1731341756699,0.06470936,84530.0,84509.0,0.023]
[1731341756892,0.1773144,84521.0,84511.0,0.123]
[1731341757187,0.06470936,84530.0,84513.0,0.123]
[1731341757363,0.1773144,84528.0,84516.0,0.03371004]
[1731341757572,0.1773144,84528.0,84518.0,0.1]
[1731341758016,0.06470936,84530.0,84519.0,0.00236576]
[1731341758219,0.06470936,84530.0,84522.0,0.1]
[1731341758421,0.06470936,84530.0,84523.0,0.023]
[1731341758780,0.1773144,84540.0,84524.0,0.00236562]
[1731341758982,0.1773144,84557.0,84525.0,0.26424075]
[1731341759203,0.1773144,84539.0,84538.0,0.03371004]
[1731341759409,0.1773144,84548.0,84539.0,0.023]
[1731341759613,0.1773144,84548.0,84542.0,0.0339395]
[1731341759814,0.1773144,84548.0,84541.0,0.0339395]
[1731341760166,0.1756144,84557.0,84542.0,0.0339395]
[1731341760382,0.1756144,84557.0,84545.0,0.0339395]
[1731341760593,0.001702,84548.0,84545.0,0.0339395]
[1731341760824,0.001702,84548.0,84546.0,0.00236479]
[1731341761027,0.001702,84548.0,84547.0,0.023]
[1731341761254,0.001702,84548.0,84547.0,0.0253648]
[1731341761461,0.001702,84548.0,84541.0,0.1]
[1731341761673,0.11994075,84547.0,84534.0,0.302]
[1731341761884,0.12494075,84547.0,84534.0,0.302]
[1731341762127,0.001702,84548.0,84545.0,0.0339759]
[1731341762338,0.001702,84548.0,84541.0,0.05096386]
[1731341762339,0.1773144,84565.0,84546.0,0.00236522]
[1731341762549,0.1773144,84551.0,84548.0,0.0339962]
[1731341762755,0.11994075,84564.0,84542.0,0.1773144]
[1731341763167,0.1773144,84556.0,84542.0,0.0339962]
[1731341763172,0.1773144,84556.0,84548.0,0.0339962]
[1731341763374,0.11994075,84564.0,84549.0,0.0339962]
[1731341763597,0.11994075,84564.0,84550.0,0.0339962]
[1731341763598,0.005,84562.0,84550.0,0.0339962]
[1731341763828,0.0808,84568.0,84551.0,0.00236501]
[1731341764051,0.1773144,84567.0,84561.0,0.0339962]
[1731341764273,0.1773144,84567.0,84554.0,0.05096386]
[1731341764274,0.1773144,84567.0,84566.0,0.0339962]
[1731341764506,0.1773144,84581.0,84563.0,0.05099095]
[1731341764745,0.1773144,84581.0,84554.0,0.1773144]
[1731341764746,0.1773144,84570.0,84566.0,0.18498492]
[1731341764951,0.29725515,84580.0,84569.0,0.05096878]
[1731341765179,0.29725515,84580.0,84572.0,0.03397944]
[1731341765400,0.29695515,84580.0,84571.0,0.03397944]
[1731341765622,0.1773144,84579.0,84571.0,0.03397944]
[1731341765843,0.005,84577.0,84568.0,0.1]
[1731341766070,0.005,84590.0,84570.0,0.1]
[1731341766310,0.005,84610.0,84570.0,0.1]
[1731341766311,0.1773144,84589.0,84581.0,0.03398158]
[1731341766516,0.1773144,84589.0,84584.0,0.03398158]
[1731341766729,0.1773144,84589.0,84583.0,0.03398158]
[1731341766963,0.1773144,84589.0,84578.0,0.1]
[1731341766964,0.005,84590.0,84578.0,0.1]
[1731341767183,0.11994075,84588.0,84582.0,0.1]
[1731341767449,0.1823144,84586.0,84583.0,0.00236428]
[1731341767654,0.002,84608.0,84582.0,0.1]
[1731341767655,0.005,84596.0,84582.0,0.13398158]
[1731341767886,0.005,84602.0,84584.0,0.13398158]
[1731341768121,0.005,84605.0,84586.0,0.03398158]
[1731341768122,0.1773144,84592.0,84586.0,0.03398158]
[1731341768360,0.11994075,84600.0,84588.0,0.03398158]
[1731341768581,0.1773144,84610.0,84589.0,0.03634548]
[1731341768794,0.29725515,84610.0,84598.0,0.03398158]
[1731341769004,0.29725515,84610.0,84600.0,0.03398158]
[1731341769214,0.005,84608.0,84600.0,0.03398158]
[1731341769432,0.005,84608.0,84596.0,0.13398158]
[1731341769433,0.11994075,84607.0,84596.0,0.13398158]
[1731341769655,0.005,84605.0,84596.0,0.1]
[1731341769860,0.11994075,84604.0,84598.0,0.1]
[1731341770297,0.005,84607.0,84599.0,0.00236386]
[1731341770507,0.005,84617.0,84602.0,0.1]
[1731341770804,0.1823144,84619.0,84602.0,0.1]
[1731341770805,0.1823144,84609.0,84602.0,0.1]
[1731341771010,0.11994075,84608.0,84602.0,0.1]
[1731341771442,0.005,84607.0,84590.0,0.03398158]
[1731341771669,0.11994075,84606.0,84597.0,0.1]
[1731341771903,0.11994075,84606.0,84582.0,0.06795693]
[1731341771904,0.005,84595.0,84588.0,0.1773144]
[1731341772111,0.005,84595.0,84577.0,0.9695423]
[1731341772112,0.005,84592.0,84589.0,0.1773144]
[1731341772320,0.12494075,84591.0,84577.0,0.60349831]
[1731341772549,0.005,84586.0,84577.0,0.60349831]
[1731341772756,0.11994075,84585.0,84577.0,0.60349831]
[1731341772980,0.11994075,84585.0,84579.0,0.0023643]
[1731341773185,0.12494075,84585.0,84579.0,0.0023643]
[1731341773418,0.12494075,84585.0,84577.0,0.60349831]
[1731341773419,0.1823144,84584.0,84577.0,0.60349831]
[1731341773656,0.1823144,84584.0,84572.0,0.302]
[1731341773657,0.01,84573.0,84572.0,0.302]
[1731341773861,0.005,84562.0,84558.0,0.1773144]
[1731341774074,0.11994075,84561.0,84558.0,0.1773144]
[1731341774524,0.11994075,84561.0,84544.0,0.05104803]
[1731341774525,0.005,84552.0,84544.0,0.03403202]
[1731341774677,0.002,84565.0,84536.0,0.03403202]
[1731341774678,0.005,84548.0,84536.0,0.03403202]
[1731341774882,0.005,84548.0,84534.0,0.05104803]
[1731341774883,0.005,84549.0,84541.0,0.00236536]
[1731341775120,0.005,84549.0,84537.0,0.03403202]
[1731341775121,0.005,84548.0,84537.0,0.03403202]
[1731341775306,0.005,84548.0,84534.0,0.03403202]
[1731341775521,0.005,84548.0,84535.0,0.03403202]
[1731341775733,0.005,84548.0,84536.0,0.03403202]
[1731341775953,0.005,84548.0,84537.0,0.03639729]
[1731341776176,0.1773144,84562.0,84537.0,0.03639729]
[1731341776177,0.1773144,84562.0,84537.0,0.00236527]
[1731341776437,0.11994075,84547.0,84536.0,0.03403202]
[1731341776643,0.11994075,84547.0,84533.0,0.15104803]
[1731341776644,0.11994075,84547.0,84535.0,0.03403202]
[1731341776847,0.11994075,84547.0,84535.0,0.1]
[1731341777072,0.1773144,84545.0,84535.0,0.1]
[1731341777284,0.11994075,84544.0,84532.0,0.00085]
[1731341777498,0.0779,84543.0,84532.0,0.00085]
[1731341777708,0.1773144,84541.0,84532.0,0.00085]
[1731341777921,0.11994075,84540.0,84532.0,0.00085]
[1731341778686,0.11592902,84540.0,84532.0,0.00085]
[1731341778901,0.00248327,84539.0,84532.0,0.00085]
[1731341779124,0.11994075,84538.0,84532.0,0.00085]
[1731341780268,0.11994075,84538.0,84534.0,0.1773144]
[1731341780474,0.11994075,84538.0,84535.0,0.1]
[1731341780902,0.1793144,84537.0,84535.0,0.1]
[1731341781124,0.11994075,84536.0,84535.0,0.1]
[1731341781546,0.11994075,84536.0,84532.0,0.00085]
[1731341782670,0.053,84554.0,84536.0,0.1]
[1731341782671,0.046,84554.0,84536.0,0.1]
[1731341782908,0.0766,84555.0,84538.0,0.03412759]
[1731341782909,0.1773144,84551.0,84538.0,0.03412759]
[1731341783134,0.0496,84569.0,84547.0,0.03412759]
[1731341783135,0.0797,84569.0,84547.0,0.03412759]
[1731341783336,0.0797,84569.0,84555.0,0.03409489]
[1731341783568,0.0797,84569.0,84559.0,0.03409489]
[1731341784038,0.1773144,84572.0,84559.0,0.03409489]
[1731341784039,0.1773144,84572.0,84561.0,0.03408226]
[1731341784277,0.1773144,84572.0,84563.0,0.03408177]
[1731341784520,0.12242402,84571.0,84568.0,0.1773144]
[1731341784735,0.11994075,84571.0,84569.0,0.1]
[1731341785615,0.11994075,84571.0,84562.0,0.1]
[1731341785828,0.11994075,84571.0,84563.0,0.1]
[1731341786076,0.11994075,84571.0,84563.0,0.2773144]
[1731341786310,0.11994075,84571.0,84559.0,0.03412947]
[1731341786532,0.11994075,84571.0,84552.0,0.1]
[1731341786767,0.11994075,84571.0,84552.0,0.09612096]
[1731341786973,0.1773144,84570.0,84553.0,0.1773144]
[1731341787204,0.11994075,84569.0,84553.0,0.1773144]
[1731341787665,0.11994075,84569.0,84542.0,0.1773144]
[1731341787666,0.17979767,84568.0,84542.0,0.1773144]
[1731341787878,0.17979767,84568.0,84543.0,0.00236534]
[1731341787879,0.11994075,84561.0,84543.0,0.00236534]
[1731341788087,0.00248327,84560.0,84542.0,0.1773144]
[1731341788324,0.29725515,84559.0,84542.0,0.1773144]
[1731341788581,0.0802,84558.0,84542.0,0.1773144]
[1731341788759,0.11994075,84557.0,84542.0,0.1773144]
[1731341788988,0.29725515,84557.0,84532.0,0.00085]
[1731341789194,0.11994075,84557.0,84537.0,0.1773144]
[1731341789411,0.1773144,84556.0,84537.0,0.1773144]
[1731341789626,0.11994075,84555.0,84538.0,0.1773144]
[1731341790312,0.0468,84562.0,84538.0,0.1773144]
[1731341790313,0.2575144,84572.0,84547.0,0.1773144]
[1731341790542,0.2575144,84572.0,84548.0,0.1]
[1731341790543,0.1773144,84556.0,84548.0,0.1]
[1731341790778,0.29725515,84555.0,84552.0,0.1]
[1731341791023,0.0802,84552.0,84539.0,0.1773144]
[1731341791225,0.00248327,84551.0,84548.0,0.1773144]
[1731341791464,0.00248327,84551.0,84526.0,0.1773144]
[1731341791465,0.00248327,84551.0,84529.0,0.10237005]
[1731341791675,0.1773144,84549.0,84530.0,0.10237005]
[1731341791885,0.11994075,84540.0,84526.0,0.27968445]
[1731341792108,0.11994075,84538.0,84535.0,0.1773144]
[1731341792313,0.11994075,84538.0,84516.0,0.1773144]
[1731341792314,0.00748327,84537.0,84520.0,0.10237005]
[1731341792521,0.002,84533.0,84516.0,0.1773144]
[1731341792731,0.081,84533.0,84516.0,0.1773144]
[1731341792936,0.1281,84533.0,84516.0,0.1773144]
[1731341793372,0.1301,84533.0,84525.0,0.08595058]
[1731341793675,0.1281,84533.0,84526.0,0.08595058]
[1731341793848,0.20094075,84533.0,84532.0,0.08680058]
[1731341794309,0.20294075,84533.0,84532.0,0.00085]
[1731341794535,0.20094075,84533.0,84532.0,0.00085]
[1731341794982,0.20094075,84533.0,84532.0,0.08674616]
[1731341795188,0.20094075,84533.0,84532.0,0.00085]
[1731341795390,0.20094075,84533.0,84532.0,0.08674616]
[1731341795624,0.20094075,84533.0,84532.0,0.08674932]
[1731341795836,0.11994075,84533.0,84532.0,0.00085]
[1731341796720,0.1773144,84544.0,84532.0,0.15200578]
[1731341796950,0.1773144,84535.0,84533.0,0.1]
[1731341797184,0.1773144,84544.0,84533.0,0.1]
[1731341797431,0.00248327,84542.0,84541.0,0.20303298]
[1731341797646,0.12194075,84542.0,84541.0,0.1]
[1731341797900,0.16994075,84542.0,84541.0,0.18589546]
[1731341798371,0.002,84533.0,84532.0,0.00085]
[1731341798577,0.12442402,84533.0,84532.0,0.00085]
[1731341798784,0.12442402,84533.0,84532.0,0.0695857]
[1731341799021,0.12194075,84533.0,84532.0,0.00585]
[1731341799252,0.12442402,84533.0,84532.0,0.00585]
[1731341799481,0.14674938,84533.0,84532.0,0.05741591]
[1731341799684,0.14674938,84533.0,84532.0,0.00085]
[1731341800321,0.13726611,84533.0,84532.0,0.0695857]
[1731341800762,0.13726611,84533.0,84532.0,0.06961978]
[1731341800965,0.13226611,84533.0,84532.0,0.00085]
[1731341801623,0.11994075,84533.0,84532.0,0.00085]
[1731341802636,0.081,84546.0,84532.0,0.00085]
[1731341802801,0.29725515,84545.0,84539.0,0.1]
[1731341803298,0.29725515,84545.0,84532.0,0.00085]
[1731341803299,0.002,84542.0,84541.0,0.1]
[1731341804149,0.12194075,84542.0,84541.0,0.1]
[1731341804362,0.12194075,84542.0,84535.0,0.1]
[1731341804363,0.002,84536.0,84535.0,0.1]
[1731341804577,0.002,84533.0,84532.0,0.00085]
[1731341804782,0.12694075,84533.0,84532.0,0.00085]
[1731341804953,0.27974075,84533.0,84532.0,0.00085]
[1731341805543,0.27974075,84533.0,84531.0,0.00869484]
[1731341805544,0.012,84532.0,84531.0,0.00869484]
[1731341805749,0.012,84532.0,84498.0,0.1773144]
[1731341805750,0.005,84512.0,84511.0,0.1773144]
[1731341805956,0.005,84512.0,84507.0,0.10311977]
[1731341805957,0.0517,84509.0,84507.0,0.10311977]
[1731341806156,0.0517,84509.0,84498.0,0.1773144]
[1731341806157,0.12494075,84508.0,84498.0,0.1773144]
[1731341806363,0.0517,84509.0,84486.0,0.1773144]
[1731341806364,0.002,84494.0,84486.0,0.1773144]
[1731341806790,0.002,84494.0,84474.0,0.15228347]
[1731341807021,0.002,84494.0,84480.0,0.1773144]
[1731341807236,0.002,84494.0,84477.0,0.15228347]
[1731341807451,0.1773144,84492.0,84472.0,0.15228347]
[1731341807663,0.11994075,84491.0,84479.0,0.1773144]
[1731341807898,0.11994075,84491.0,84480.0,0.1]
[1731341808114,0.1773144,84508.0,84480.0,0.1]
[1731341808353,0.1773144,84508.0,84481.0,0.15228347]
[1731341808354,0.1773144,84494.0,84481.0,0.15228347]
[1731341808563,0.1773144,84508.0,84484.0,0.1]
[1731341808564,0.11994075,84493.0,84484.0,0.1]
[1731341808827,0.11994075,84493.0,84487.0,0.1]
[1731341809059,0.11994075,84493.0,84486.0,0.1]
[1731341809480,0.1773144,84508.0,84488.0,0.1]
[1731341809727,0.1773144,84499.0,84488.0,0.1]
[1731341809945,0.11994075,84507.0,84488.0,0.25228347]
[1731341810161,0.11994075,84507.0,84490.0,0.25202948]
[1731341810389,0.1773144,84499.0,84490.0,0.25202948]
[1731341810589,0.11994075,84507.0,84490.0,0.25202948]
[1731341810590,0.11994075,84507.0,84490.0,0.1]
[1731341810796,0.1773144,84508.0,84490.0,0.1]
[1731341810797,0.0477,84523.0,84501.0,0.1773144]
[1731341811039,0.0766,84536.0,84502.0,0.00236646]
[1731341811249,0.005,84548.0,84502.0,0.00236646]
[1731341811250,0.0811,84548.0,84506.0,0.1]
[1731341811452,0.0811,84548.0,84510.0,0.1]
[1731341811678,0.0811,84548.0,84512.0,0.1]
[1731341811679,0.1773144,84516.0,84512.0,0.1]
[1731341811894,0.11994075,84529.0,84516.0,0.1]
[1731341812114,0.0017,84551.0,84525.0,0.15188873]
[1731341812335,0.1773144,84528.0,84522.0,0.105]
[1731341812566,0.0017,84551.0,84524.0,0.105]
[1731341812781,0.1773144,84544.0,84539.0,0.1]
[1731341812984,0.1773144,84544.0,84529.0,0.005]
[1731341812985,0.1773144,84544.0,84543.0,0.1]
[1731341813415,0.0017,84551.0,84543.0,0.1]
[1731341813661,0.0017,84551.0,84547.0,0.1]
[1731341813926,0.0017,84551.0,84547.0,0.1518925]
[1731341814155,0.0017,84551.0,84549.0,0.1]
[1731341814370,0.0017,84551.0,84550.0,0.1]
[1731341814821,0.12164075,84551.0,84550.0,0.1]
[1731341815045,0.0017,84551.0,84550.0,0.1]
[1731341815499,0.0017,84551.0,84538.0,0.1773144]
[1731341815500,0.0017,84551.0,84535.0,0.1]
[1731341815721,0.0017,84551.0,84540.0,0.1]
[1731341815946,0.0017,84551.0,84541.0,0.00236527]
[1731341816197,0.0010266,84551.0,84550.0,0.1]
[1731341816469,0.1773144,84571.0,84555.0,0.005]
[1731341816700,0.1773144,84571.0,84556.0,0.00736471]
[1731341816701,0.1773144,84560.0,84556.0,0.00736471]
[1731341816926,0.1773144,84571.0,84556.0,0.005]
[1731341817119,0.1773144,84562.0,84556.0,0.005]
[1731341817369,0.11994075,84570.0,84556.0,0.005]
[1731341817585,0.1773144,84569.0,84557.0,0.11581628]
[1731341817804,0.1773144,84569.0,84556.0,0.12081628]
[1731341818035,0.11994075,84570.0,84556.0,0.005]
[1731341818259,0.11994075,84570.0,84555.0,0.005]
[1731341818260,0.1773144,84568.0,84555.0,0.005]
[1731341818459,0.11994075,84570.0,84555.0,0.105]
[1731341818588,0.11994075,84567.0,84555.0,0.2773144]
[1731341818803,0.005,84600.0,84566.0,0.1]
[1731341819039,0.076,84601.0,84567.0,0.00236482]
[1731341819234,0.1773144,84579.0,84567.0,0.00236482]
[1731341819455,0.1773144,84588.0,84567.0,0.00236482]
[1731341819640,0.11994075,84587.0,84568.0,0.1]
[1731341819901,0.11994075,84587.0,84570.0,0.1]
[1731341820101,0.002,84612.0,84564.0,0.005]
[1731341820102,0.007,84612.0,84584.0,0.1]
[1731341820291,0.1773144,84586.0,84584.0,0.1]
[1731341820523,0.11994075,84596.0,84584.0,0.1]
[1731341820726,0.11994075,84596.0,84588.0,0.1]
[1731341821325,0.11994075,84596.0,84595.0,0.1]
[1731341821528,0.11994075,84596.0,84595.0,0.2029313]
[1731341821943,0.11994075,84596.0,84595.0,0.1]
[1731341822375,0.002,84604.0,84595.0,0.1]
[1731341822376,0.002,84611.0,84596.0,0.1]
[1731341822574,0.0799,84616.0,84596.0,0.20283788]
[1731341822575,0.1773144,84605.0,84596.0,0.20283788]
[1731341822778,0.0849,84616.0,84598.0,0.1]
[1731341822779,0.11994075,84604.0,84598.0,0.1]
[1731341822995,0.11994075,84604.0,84600.0,0.1]
[1731341823202,0.11994075,84604.0,84598.0,0.1]
[1731341824056,0.12194075,84604.0,84603.0,0.08567756]
[1731341824268,0.12194075,84604.0,84603.0,0.06853004]
[1731341824503,0.033,84603.0,84602.0,0.05753021]
[1731341824724,0.033,84603.0,84555.0,0.1773144]
[1731341824725,0.005,84590.0,84589.0,0.08567756]
[1731341824939,0.12494075,84590.0,84587.0,0.1773144]
[1731341825134,0.11994075,84589.0,84587.0,0.1773144]
[1731341825362,0.11994075,84589.0,84578.0,0.1773144]
[1731341825577,0.1215,84603.0,84588.0,0.1773144]
[1731341825780,0.1773144,84602.0,84592.0,0.1]
[1731341825982,0.1773144,84602.0,84578.0,0.2647144]
[1731341825983,0.1810124,84631.0,84598.0,0.10283788]
[1731341826197,0.1790124,84631.0,84613.0,0.08554117]
[1731341826436,0.1790124,84631.0,84601.0,0.20283788]
[1731341826437,0.1790124,84631.0,84616.0,0.08549042]
[1731341826682,0.1790124,84631.0,84617.0,0.39961857]
[1731341826683,0.001698,84631.0,84617.0,0.39961857]
[1731341826897,0.1773144,84627.0,84617.0,0.1]
[1731341827762,0.12061075,84618.0,84614.0,0.08539628]
[1731341827976,0.11994075,84617.0,84615.0,0.05125652]
[1731341828184,0.11994075,84617.0,84606.0,0.1773144]
[1731341828185,0.11994075,84617.0,84614.0,0.05125652]
[1731341828408,0.11994075,84617.0,84616.0,0.03416531]
[1731341828614,0.12194075,84617.0,84616.0,0.03416531]
[1731341828837,0.005,84610.0,84609.0,0.03420443]
[1731341829056,0.005,84610.0,84607.0,0.03420443]
[1731341829057,0.12494075,84610.0,84607.0,0.03420443]
[1731341829256,0.11994075,84609.0,84608.0,0.03420218]
[1731341829465,0.11994075,84609.0,84606.0,0.05125652]
[1731341829681,0.11994075,84609.0,84608.0,0.05125652]
[1731341829905,0.11994075,84609.0,84607.0,0.05125652]
[1731341830159,0.11994075,84609.0,84602.0,0.08539628]
[1731341830359,0.00067,84618.0,84609.0,0.1]
[1731341830564,0.1773144,84616.0,84609.0,0.18539628]
[1731341830766,0.00067,84618.0,84609.0,0.18539628]
[1731341830767,0.11994075,84615.0,84610.0,0.08539628]
[1731341830971,0.00067,84618.0,84611.0,0.1773144]
[1731341831180,0.00067,84618.0,84613.0,0.1773144]
[1731341831396,0.00067,84618.0,84595.0,0.005]
[1731341831397,0.00067,84618.0,84615.0,0.08539628]
[1731341831597,0.00067,84618.0,84616.0,0.1]
[1731341832492,0.11303754,84636.0,84616.0,0.1]
[1731341832700,0.29725515,84635.0,84631.0,0.03414359]
[1731341832938,0.29725515,84635.0,84632.0,0.03414359]
[1731341832939,0.11994075,84635.0,84632.0,0.03414359]
[1731341833146,0.00067,84645.0,84634.0,0.03414359]
[1731341833363,0.11994075,84639.0,84634.0,0.03414359]
[1731341834220,0.11994075,84639.0,84628.0,0.1341007]
[1731341834423,0.11994075,84639.0,84600.0,0.005]
[1731341834424,0.11994075,84639.0,84629.0,0.1773144]
[1731341834646,0.11994075,84639.0,84630.0,0.1]
[1731341834875,0.005,84633.0,84613.0,0.06828719]
[1731341835094,0.11994075,84632.0,84621.0,0.1773144]
[1731341835310,0.005,84631.0,84603.0,0.06828719]